bitfinex/quotes_SOLUSD_20250712
["timestamp","ask_amount","ask_price","bid_price","bid_amount"]
[1752324242895,26.06,159.77,159.72,0.74]
[1752324243487,26.0,159.77,159.72,0.74]
[1752324243697,26.0,159.77,159.73,0.68]
[1752324244300,26.0,159.77,159.72,0.06]
[1752324244301,26.0,159.77,159.74,0.68]
[1752324244494,0.03,159.79,159.75,0.68]
[1752324246597,0.03,159.79,159.76,1.5695]
[1752324246982,0.03,159.79,159.77,0.68]
[1752324247804,0.03,159.79,159.78,0.68]
[1752324248106,0.03,159.79,159.77,0.68]
[1752324248607,0.03,159.79,159.78,0.68]
[1752324253809,0.03,159.79,159.78,17.46468397]
[1752324254101,0.03,159.79,159.78,24.03884147]
[1752324256020,0.03,159.79,159.78,17.46468397]
[1752324256214,0.03,159.79,159.78,24.03884147]
[1752324257716,0.03,159.79,159.78,0.68]
[1752324259202,0.03,159.79,159.76,2.2295]
[1752324259505,0.03,159.79,159.77,0.66]
[1752324260211,0.03,159.79,159.78,0.66]
[1752324261013,0.03,159.79,159.76,2.2295]
[1752324261391,0.03,159.79,159.77,0.66]
[1752324261914,0.03,159.79,159.78,0.66]
[1752324263285,0.03,159.79,159.76,1.5695]
[1752324263488,0.03,159.79,159.78,0.66]
[1752324263916,0.03,159.79,159.76,2.2295]
[1752324264120,0.03,159.79,159.78,0.66]
[1752324264990,0.03,159.79,159.76,1.5695]
[1752324265194,0.03,159.79,159.78,0.66]
[1752324268695,0.03,159.79,159.76,2.2295]
[1752324268896,0.03,159.79,159.77,0.66]
[1752324270908,0.03,159.79,159.76,1.5695]
[1752324271103,0.03,159.79,159.78,0.66]
[1752324271301,0.03,159.79,159.78,0.72]
[1752324278921,0.03,159.79,159.78,17.50468397]
[1752324279228,0.03,159.79,159.78,0.72]
[1752324279631,0.03,159.79,159.78,0.06]
[1752324279810,0.03,159.79,159.78,0.72]
[1752324280544,0.03,159.79,159.78,21.44646974]
[1752324280708,0.03,159.79,159.78,17.50468397]
[1752324282815,0.03,159.79,159.78,0.72]
[1752324283018,0.03,159.79,159.78,0.06]
[1752324283238,26.09,159.79,159.78,0.06]
[1752324283455,26.0,159.78,159.75,0.06]
[1752324283613,1.6354,159.77,159.75,0.06]
[1752324283819,6.6051,159.76,159.75,0.06]
[1752324288818,152.1051,159.76,159.74,31.00816505]
[1752324289028,152.1051,159.76,159.71,31.25236832]
[1752324289435,8.08128281,159.79,159.71,31.25236832]
[1752324289639,1.94871719,159.77,159.71,31.25236832]
[1752324290449,1.94871719,159.78,159.71,31.25236832]
[1752324290847,26.0,159.76,159.71,31.25236832]
[1752324291232,6.4196819,159.79,159.71,31.25236832]
[1752324291431,0.03,159.79,159.71,31.25236832]
[1752324291629,0.03,159.79,159.71,31.92236832]
[1752324291834,0.03,159.79,159.74,31.00816505]
[1752324292039,0.03,159.79,159.72,31.9644949]
[1752324292344,0.03,159.79,159.72,40.01527383]
[1752324292671,26.0,159.76,159.72,31.9644949]
[1752324292853,26.0,159.76,159.72,40.68527383]
[1752324293157,6.4284,159.79,159.73,31.72220742]
[1752324293327,26.0,159.76,159.72,40.01527383]
[1752324293648,26.0,159.76,159.72,32.6344949]
[1752324294225,26.0,159.76,159.74,31.00816505]
[1752324295734,26.0,159.76,159.74,31.67816505]
[1752324296049,26.0,159.78,159.74,39.72944786]
[1752324296262,0.03,159.79,159.75,0.67]
[1752324296458,0.03,159.79,159.76,8.72128281]
[1752324297531,0.03,159.79,159.76,0.67]
[1752324297731,0.03,159.79,159.76,8.72128281]
[1752324297948,0.03,159.79,159.76,0.67]
[1752324298148,0.03,159.79,159.74,31.00816505]
[1752324298334,0.03,159.79,159.74,39.05944786]
[1752324298736,0.03,159.79,159.75,8.05128281]
[1752324298946,0.03,159.79,159.74,39.05944786]
[1752324299133,0.03,159.79,159.75,8.05128281]
[1752324299641,6.2561,159.77,159.72,31.9644949]
[1752324299840,26.0,159.76,159.72,31.9644949]
[1752324300929,6.2561,159.77,159.72,31.9644949]
[1752324302356,0.5,159.76,159.72,31.9644949]
[1752324303964,0.03,159.79,159.71,8.11128281]
[1752324303965,0.03,159.79,159.76,8.05128281]
[1752324304132,0.03,159.79,159.77,8.05128281]
[1752324304451,0.03,159.79,159.78,8.05128281]
[1752324304876,0.03,159.79,159.78,8.72128281]
[1752324305461,0.03,159.79,159.78,25.50596678]
[1752324305829,0.03,159.89,159.82,8.05128281]
[1752324306035,0.03,159.89,159.83,8.05128281]
[1752324306235,26.0,159.87,159.83,8.05128281]
[1752324306467,0.03,159.89,159.81,8.05128281]
[1752324306667,26.03,159.87,159.81,8.05128281]
[1752324307263,0.03,159.84,159.79,0.67]
[1752324307462,0.03,159.84,159.79,8.72128281]
[1752324308430,26.0,159.87,159.79,8.72128281]
[1752324308638,0.03,159.86,159.79,8.72128281]
[1752324308834,0.03,159.84,159.78,8.05128281]
[1752324309065,0.03,159.84,159.76,8.72128281]
[1752324309236,0.03,159.84,159.78,8.05128281]
[1752324309431,0.03,159.84,159.76,8.72128281]
[1752324309635,0.03,159.84,159.77,8.05128281]
[1752324309836,26.0,159.83,159.75,8.05128281]
[1752324310071,0.03,159.82,159.75,8.05128281]
[1752324310964,26.0,159.81,159.75,8.05128281]
[1752324311668,6.1923,159.8,159.75,8.05128281]
[1752324311971,26.0,159.77,159.74,31.00816505]
[1752324312138,26.03,159.77,159.73,31.72220742]
[1752324312552,26.03,159.77,159.73,39.77349023]
[1752324312755,26.03,159.77,159.73,31.72220742]
[1752324312946,26.03,159.77,159.72,31.9644949]
[1752324313138,26.03,159.77,159.74,31.00816505]
[1752324313350,26.03,159.77,159.72,31.9644949]
[1752324313656,26.0,159.77,159.74,31.00816505]
[1752324313841,26.0,159.77,159.74,31.67816505]
[1752324314040,26.0,159.77,159.75,0.71]
[1752324314240,26.0,159.77,159.76,0.71]
[1752324314649,6.1623,159.8,159.76,0.71]
[1752324314854,26.0,159.81,159.77,0.71]
[1752324315455,26.0,159.81,159.77,8.76128281]
[1752324315664,26.0,159.81,159.77,0.71]
[1752324315970,26.0,159.81,159.77,8.05128281]
[1752324316841,26.0,159.81,159.77,0.71]
[1752324317349,26.0,159.81,159.77,8.76128281]
[1752324318263,26.0,159.81,159.77,8.05128281]
[1752324318477,26.0,159.81,159.77,8.76128281]
[1752324320574,26.0,159.81,159.78,0.71]
[1752324321374,26.0,159.81,159.78,8.76128281]
[1752324321563,26.0,159.81,159.79,8.76128281]
[1752324322448,26.0,159.81,159.78,8.05128281]
[1752324322646,26.0,159.81,159.79,8.05128281]
[1752324322961,26.0,159.81,159.77,8.76128281]
[1752324323153,26.0,159.81,159.79,8.05128281]
[1752324323467,26.0,159.81,159.78,8.76128281]
[1752324323645,26.0,159.81,159.76,8.76128281]
[1752324323845,26.0,159.81,159.79,8.05128281]
[1752324324045,26.0,159.81,159.79,8.76128281]
[1752324324451,26.0,159.81,159.79,8.05128281]
[1752324325047,26.0,159.81,159.77,8.76128281]
[1752324325356,26.0,159.81,159.78,0.71]
[1752324325966,26.0,159.81,159.79,0.71]
[1752324326265,26.0,159.81,159.79,8.76128281]
[1752324326451,0.03,159.85,159.79,8.05128281]
[1752324326781,0.03,159.85,159.82,8.05128281]
[1752324327103,26.03,159.85,159.81,8.05128281]
[1752324327249,26.03,159.85,159.82,8.05128281]
[1752324327745,0.03,159.84,159.78,8.76128281]
[1752324327944,0.03,159.84,159.79,8.05128281]
[1752324328244,26.03,159.85,159.79,0.71]
[1752324328453,26.03,159.85,159.79,8.76128281]
[1752324328656,26.03,159.85,159.8,8.05128281]
[1752324328956,26.03,159.85,159.8,8.76128281]
[1752324329173,26.03,159.85,159.81,0.71]
[1752324329375,26.03,159.85,159.82,8.05128281]
[1752324330265,26.03,159.85,159.81,8.05128281]
[1752324330466,26.03,159.85,159.82,8.76128281]
[1752324330877,26.03,159.85,159.82,8.05128281]
[1752324331076,26.03,159.85,159.81,8.05128281]
[1752324331400,0.03,159.84,159.78,8.76128281]
[1752324331557,0.03,159.84,159.76,8.76128281]
[1752324331756,26.03,159.84,159.76,8.76128281]
[1752324331978,26.03,159.84,159.78,8.05128281]
[1752324332558,26.03,159.84,159.77,8.76128281]
[1752324333072,4.10159472,159.83,159.78,8.05128281]
[1752324333292,26.0,159.84,159.79,0.71]
[1752324333482,26.0,159.84,159.79,8.76128281]
[1752324333661,26.0,159.84,159.8,8.05128281]
[1752324333863,26.0,159.84,159.81,0.71]
[1752324334167,0.03,159.85,159.81,8.76128281]
[1752324334385,26.0,159.84,159.81,8.76128281]
[1752324335966,26.0,159.84,159.81,8.05128281]
[1752324336472,26.0,159.84,159.81,8.76128281]
[1752324337394,26.0,159.84,159.82,0.71]
[1752324338013,26.0,159.84,159.81,8.05128281]
[1752324338293,26.03,159.84,159.81,8.76128281]
[1752324338468,26.03,159.84,159.82,0.71]
[1752324338668,26.03,159.84,159.81,8.05128281]
[1752324338869,26.03,159.84,159.81,0.71]
[1752324339076,26.03,159.84,159.81,8.76128281]
[1752324340995,26.03,159.84,159.81,0.71]
[1752324341297,26.03,159.84,159.79,8.76128281]
[1752324341468,26.03,159.84,159.8,0.71]
[1752324341671,0.06,159.84,159.79,8.05128281]
[1752324341872,30.13540813,159.84,159.77,8.82128281]
[1752324342069,0.03,159.83,159.77,0.77]
[1752324342692,26.0,159.81,159.77,0.06]
[1752324342879,6.5022,159.8,159.77,0.06]
[1752324343292,0.03,159.79,159.77,0.06]
[1752324343477,6.4722,159.8,159.77,0.06]
[1752324344371,0.03,159.79,159.77,0.06]
[1752324346080,10.5763383,159.8,159.77,0.06]
[1752324346279,10.6063383,159.8,159.77,0.06]
[1752324346878,10.5763383,159.8,159.77,0.06]
[1752324347196,26.0,159.81,159.78,0.7]
[1752324347582,26.0,159.81,159.77,0.06]
[1752324347777,26.03,159.81,159.77,0.06]
[1752324347979,26.0,159.81,159.77,8.81128281]
[1752324348272,26.0,159.81,159.78,0.7]
[1752324348686,26.0,159.81,159.79,0.7]
[1752324348895,26.0,159.81,159.8,0.7]
[1752324349082,145.53,159.84,159.8,8.75128281]
[1752324349283,171.53,159.84,159.8,8.75128281]
[1752324349703,4.1134765,159.83,159.8,8.75128281]
[1752324350000,4.1134765,159.83,159.8,0.7]
[1752324350312,4.1134765,159.83,159.8,8.75128281]
[1752324350672,26.0,159.82,159.81,0.7]
[1752324351181,26.0,159.82,159.79,8.05128281]
[1752324351375,26.03,159.82,159.77,0.06]
[1752324351616,4.145168,159.81,159.77,0.06]
[1752324352117,0.03,159.8,159.77,0.06]
[1752324353183,4.115168,159.81,159.77,0.06]
[1752324353578,0.03,159.8,159.77,0.06]
[1752324354203,4.115168,159.81,159.77,0.06]
[1752324354695,4.145168,159.81,159.77,0.06]
[1752324357129,4.115168,159.81,159.77,0.76]
[1752324358201,4.115168,159.81,159.77,0.06]
[1752324358926,4.115168,159.81,159.77,0.76]
[1752324360201,4.145168,159.81,159.77,0.76]
[1752324361200,4.175168,159.81,159.77,0.06]
[1752324361620,0.03,159.8,159.77,0.06]
[1752324361800,0.03,159.79,159.77,0.06]
[1752324362001,4.145168,159.79,159.77,0.06]
[1752324362239,4.115168,159.79,159.77,0.06]
[1752324363599,26.03,159.78,159.77,0.06]
[1752324363797,30.115168,159.78,159.77,0.06]
[1752324364722,30.145168,159.78,159.77,0.06]
[1752324365905,30.115168,159.78,159.77,0.06]
[1752324366129,26.0,159.8,159.77,0.06]
[1752324366337,0.03,159.81,159.78,0.7]
[1752324366846,0.03,159.81,159.77,0.06]
[1752324367011,0.06,159.81,159.77,0.06]
[1752324367411,4.141972,159.81,159.77,0.06]
[1752324368035,4.141972,159.81,159.78,0.7]
[1752324368212,0.03,159.81,159.79,0.7]
[1752324368418,0.03,159.81,159.8,0.7]
[1752324369243,0.03,159.81,159.8,8.75128281]
[1752324369807,0.03,159.84,159.8,8.75128281]
[1752324370005,0.03,159.84,159.83,8.05128281]
[1752324370405,0.03,159.84,159.83,8.75128281]
[1752324372033,0.03,159.84,159.83,8.05128281]
[1752324372218,0.03,159.84,159.82,8.05128281]
[1752324372535,0.03,159.84,159.81,0.7]
[1752324372536,0.03,159.84,159.81,8.05128281]
[1752324372740,0.09,159.84,159.79,8.05128281]
[1752324372911,26.06,159.83,159.77,0.06]
[1752324373223,30.10972954,159.82,159.77,0.06]
[1752324373402,4.10972954,159.81,159.77,0.06]
[1752324373603,26.0,159.82,159.77,0.06]
[1752324373802,4.16972954,159.81,159.77,0.06]
[1752324374239,4.10972954,159.81,159.77,0.06]
[1752324374736,26.0,159.82,159.78,0.7]
[1752324374917,26.0,159.82,159.79,8.05128281]
[1752324375125,26.0,159.82,159.8,0.7]
[1752324375334,26.0,159.82,159.81,0.7]
[1752324375515,26.0,159.83,159.81,0.7]
[1752324377228,0.03,159.84,159.79,0.7]
[1752324377431,26.0,159.83,159.79,8.05128281]
[1752324378531,26.0,159.83,159.79,8.75128281]
[1752324379813,26.0,159.83,159.79,0.7]
[1752324380012,26.0,159.83,159.79,8.75128281]
[1752324380723,4.16817217,159.82,159.77,8.11128281]
[1752324380932,26.06,159.81,159.77,0.06]
[1752324381152,4.10817217,159.8,159.77,0.06]
[1752324381853,26.0,159.81,159.77,8.81128281]
[1752324382049,26.0,159.81,159.78,0.7]
[1752324382217,26.03,159.81,159.78,0.7]
[1752324382543,26.03,159.81,159.77,8.11128281]
[1752324382726,26.03,159.81,159.77,0.76]
[1752324383731,26.03,159.81,159.77,0.06]
[1752324383935,26.0,159.79,159.77,0.06]
[1752324384144,30.10823807,159.78,159.77,0.06]
[1752324384443,30.16823807,159.78,159.77,0.06]
[1752324385047,20.95292204,159.78,159.77,0.06]
[1752324385247,26.0,159.76,159.7,9.18334457]
[1752324385418,26.0,159.72,159.7,9.18334457]
[1752324385727,0.06,159.71,159.7,9.18334457]
[1752324385921,36.75305458,159.71,159.7,9.18334457]
[1752324386328,53.53773855,159.71,159.7,9.14334457]
[1752324386535,53.53773855,159.71,159.7,0.81014457]
[1752324387019,16.78468397,159.68,159.58,31.65143188]
[1752324387219,22.79163815,159.68,159.58,31.65143188]
[1752324387419,22.54992471,159.68,159.56,40.72496376]
[1752324387625,22.54992471,159.68,159.54,0.7]
[1752324387626,4.91173886,159.68,159.58,31.65143188]
[1752324387822,6.5887,159.71,159.54,31.5692857]
[1752324387823,28.50926653,159.71,159.54,31.5692857]
[1752324388020,28.50926653,159.71,159.57,31.31801379]
[1752324388227,34.52987396,159.71,159.54,31.5692857]
[1752324388423,39.63804745,159.71,159.54,31.5692857]
[1752324388628,39.63804745,159.71,159.57,31.31801379]
[1752324388826,26.0,159.68,159.55,31.76321215]
[1752324389122,26.0,159.68,159.57,31.31801379]
[1752324389323,26.0,159.7,159.55,31.76321215]
[1752324389535,26.0,159.68,159.55,31.76321215]
[1752324389725,26.0,159.68,159.57,31.31801379]
[1752324390244,145.5,159.67,159.57,31.31801379]
[1752324390431,20.88804745,159.71,159.58,32.35143188]
[1752324390631,20.88804745,159.71,159.53,16.78468397]
[1752324390632,17.71748092,159.71,159.6,31.51855661]
[1752324390838,12.60930743,159.71,159.62,31.55676086]
[1752324391034,6.5887,159.71,159.64,31.48302673]
[1752324391943,6.5887,159.71,159.61,31.33278035]
[1752324392125,6.5887,159.71,159.59,31.76027955]
[1752324392325,26.0,159.68,159.59,31.76027955]
[1752324392854,26.0,159.68,159.57,31.31801379]
[1752324394433,26.0,159.68,159.58,32.35143188]
[1752324394628,26.0,159.7,159.6,31.51855661]
[1752324394834,6.5887,159.71,159.62,31.55676086]
[1752324395256,6.5887,159.71,159.62,32.25676086]
[1752324395626,6.5887,159.71,159.64,31.48302673]
[1752324396262,6.4165,159.75,159.66,31.37617105]
[1752324396837,6.4165,159.75,159.67,0.7]
[1752324397041,32.73739713,159.76,159.68,16.78468397]
[1752324397237,32.73739713,159.76,159.69,0.7]
[1752324398340,26.0,159.73,159.66,31.37617105]
[1752324398544,26.0,159.73,159.64,31.48302673]
[1752324399463,26.0,159.73,159.64,32.34078138]
[1752324399690,26.0,159.73,159.65,0.7]
[1752324399868,26.0,159.73,159.66,31.37617105]
[1752324400045,26.0,159.73,159.62,31.55676086]
[1752324400244,26.0,159.72,159.62,31.55676086]
[1752324400646,26.0,159.72,159.63,0.85775465]
[1752324400872,26.0,159.72,159.66,31.37617105]
[1752324401050,26.0,159.71,159.65,0.7]
[1752324401374,26.0,159.71,159.62,32.25676086]
[1752324401671,26.0,159.71,159.59,0.85775465]
[1752324401672,6.1467,159.69,159.59,0.85775465]
[1752324401970,6.1467,159.69,159.6,31.51855661]
[1752324402185,10.20788268,159.69,159.6,31.51855661]
[1752324402353,26.0,159.68,159.58,31.65143188]
[1752324402545,6.1467,159.69,159.58,31.65143188]
[1752324402746,6.1467,159.69,159.58,32.35143188]
[1752324402964,6.1467,159.69,159.6,20.51855661]
[1752324403578,6.1467,159.69,159.56,17.57846564]
[1752324403760,6.1467,159.69,159.56,16.78468397]
[1752324404177,28.95679545,159.69,159.55,0.7]
[1752324404367,4.06009545,159.68,159.59,0.06]
[1752324405151,22.81009545,159.68,159.59,0.06]
[1752324405382,39.59477942,159.67,159.59,0.06]
[1752324405560,35.53468397,159.67,159.59,0.06]
[1752324405763,26.0,159.64,159.59,0.06]
[1752324407367,26.0,159.65,159.59,0.75]
[1752324407563,26.0,159.65,159.57,0.69]
[1752324407772,26.0,159.65,159.53,0.69]
[1752324407974,26.0,159.65,159.54,16.78468397]
[1752324408190,26.0,159.65,159.55,0.69]
[1752324408569,26.0,159.61,159.55,0.69]
[1752324408781,26.0,159.61,159.55,9.83299724]
[1752324409592,26.0,159.61,159.55,0.69]
[1752324409962,145.5,159.64,159.55,0.69]
[1752324410297,26.0,159.61,159.56,25.92768121]
[1752324410472,26.0,159.61,159.57,9.83299724]
[1752324410798,26.0,159.61,159.58,0.69]
[1752324411298,26.0,159.61,159.59,0.69]
[1752324411471,26.0,159.61,159.58,0.69]
[1752324411675,26.0,159.61,159.58,10.68999999]
[1752324411989,26.0,159.61,159.59,0.69]
[1752324412375,26.0,159.61,159.6,0.69]
[1752324412983,145.5,159.64,159.6,0.69]
[1752324413284,26.0,159.61,159.6,0.69]
[1752324413666,26.0,159.61,159.6,9.99999999]
[1752324413871,26.0,159.61,159.58,0.69]
[1752324414183,0.5,159.63,159.58,0.69]
[1752324414775,26.0,159.61,159.52,0.69]
[1752324415172,26.0,159.61,159.53,16.78468397]
[1752324415502,26.0,159.61,159.54,0.69]
[1752324415672,26.0,159.61,159.54,10.68999999]
[1752324415868,26.0,159.61,159.54,0.69]
[1752324416087,26.0,159.61,159.54,10.68999999]
[1752324416503,26.0,159.61,159.55,0.69]
[1752324416797,0.5,159.63,159.56,26.78468396]
[1752324417095,0.5,159.63,159.49,31.86990546]
[1752324417096,0.5,159.63,159.59,9.99999999]
[1752324417297,0.5,159.63,159.58,9.99999999]
[1752324417608,0.5,159.63,159.59,0.69]
[1752324417768,0.5,159.63,159.6,0.69]
[1752324417969,0.5,159.63,159.61,0.69]
[1752324418196,0.5,159.63,159.62,0.69]
[1752324418506,5.10889537,159.7,159.63,16.78468397]
[1752324418810,10.37305647,159.72,159.64,0.69]
[1752324419014,26.0,159.69,159.64,0.69]
[1752324419212,26.0,159.69,159.65,0.69]
[1752324419505,26.0,159.69,159.62,16.78468397]
[1752324419506,26.0,159.69,159.66,0.69]
[1752324419678,10.37305647,159.72,159.64,0.69]
[1752324420001,26.0,159.69,159.64,0.69]
[1752324420515,0.5,159.68,159.61,0.69]
[1752324420696,0.5,159.68,159.58,16.78468397]
[1752324420697,4.56277556,159.68,159.57,17.47468397]
[1752324420994,0.5,159.67,159.57,0.69]
[1752324421305,26.5,159.67,159.57,0.69]
[1752324421475,26.0,159.64,159.57,0.69]
[1752324421681,26.0,159.62,159.54,17.47468397]
[1752324421984,0.5,159.61,159.54,0.69]
[1752324422576,0.5,159.61,159.52,1.5432]
[1752324422782,4.56704464,159.61,159.49,32.55990546]
[1752324422985,0.5,159.61,159.5,0.69]
[1752324423302,26.0,159.62,159.51,16.78468397]
[1752324423503,0.5,159.64,159.51,23.36156904]
[1752324423685,26.0,159.62,159.53,16.78468397]
[1752324423885,26.0,159.62,159.55,16.78468397]
[1752324424106,26.0,159.62,159.55,17.47468397]
[1752324424485,4.0700062,159.61,159.54,16.78468397]
[1752324424886,0.5,159.6,159.53,0.69]
[1752324425280,0.5,159.6,159.52,16.78468397]
[1752324425281,4.5700062,159.6,159.52,16.78468397]
[1752324426184,4.0700062,159.6,159.54,16.78468397]
[1752324427492,4.0700062,159.6,159.53,0.69]
[1752324428007,4.0700062,159.6,159.56,10.0]
[1752324428211,4.0700062,159.6,159.57,10.0]
[1752324428383,4.0700062,159.6,159.57,10.69]
[1752324428582,4.0700062,159.6,159.58,10.0]
[1752324428792,146.0,159.64,159.55,10.69]
[1752324428793,26.0,159.61,159.55,10.69]
[1752324429114,4.0700062,159.6,159.54,10.0]
[1752324429412,4.0700062,159.6,159.55,10.0]
[1752324429582,4.0700062,159.6,159.54,10.0]
[1752324430383,0.5,159.59,159.53,10.0]
[1752324430593,4.0700062,159.59,159.54,10.0]
[1752324430797,4.0700062,159.59,159.55,0.69]
[1752324431010,4.0700062,159.59,159.56,10.69]
[1752324431189,4.0700062,159.59,159.56,0.69]
[1752324431390,4.0700062,159.59,159.55,10.0]
[1752324431616,4.0700062,159.59,159.56,10.0]
[1752324431998,4.0700062,159.59,159.56,10.69]
[1752324432203,4.0700062,159.59,159.56,10.0]
[1752324432396,4.0700062,159.59,159.54,10.0]
[1752324432603,4.5700062,159.59,159.54,10.0]
[1752324432799,4.0700062,159.59,159.55,10.0]
[1752324432999,4.0700062,159.59,159.53,10.0]
[1752324433308,4.0700062,159.59,159.52,0.69]
[1752324433510,4.0700062,159.59,159.53,10.0]
[1752324434100,26.0,159.56,159.49,42.58990546]
[1752324434304,30.09179805,159.55,159.5,10.0]
[1752324434507,30.09179805,159.55,159.49,10.0]
[1752324434508,0.5,159.54,159.49,10.0]
[1752324434709,0.5,159.53,159.49,41.86990546]
[1752324434909,4.09149741,159.54,159.5,17.50468397]
[1752324435109,4.09158108,159.54,159.49,41.86990546]
[1752324435315,4.59031847,159.54,159.51,10.0]
[1752324435619,4.09031847,159.54,159.51,10.0]
[1752324435816,26.0,159.58,159.53,10.0]
[1752324436123,4.59104378,159.57,159.5,10.72]
[1752324436304,0.5,159.57,159.49,41.86990546]
[1752324436502,30.59104378,159.57,159.49,41.86990546]
[1752324436719,4.59104378,159.56,159.51,10.0]
[1752324436922,0.5,159.55,159.51,10.0]
[1752324437119,4.09104378,159.56,159.51,10.0]
[1752324437420,4.09104378,159.56,159.54,10.0]
[1752324437602,0.5,159.63,159.55,27.50468397]
[1752324437603,4.09104378,159.59,159.55,27.50468397]
[1752324437809,6.183,159.61,159.56,0.72]
[1752324438010,6.183,159.61,159.56,10.72]
[1752324438819,6.183,159.61,159.57,0.72]
[1752324439035,26.0,159.58,159.55,10.0]
[1752324439320,4.09104378,159.57,159.56,0.72]
[1752324439624,4.09104378,159.57,159.56,10.0]
[1752324439807,30.09104378,159.61,159.56,10.0]
[1752324440012,26.0,159.58,159.55,10.0]
[1752324440215,26.0,159.58,159.56,10.0]
[1752324440826,3.63167711,159.64,159.56,10.0]
[1752324440827,26.0,159.62,159.56,10.72]
[1752324441126,4.09082169,159.61,159.56,10.72]
[1752324441626,26.5,159.61,159.56,10.0]
[1752324441815,4.09082169,159.6,159.56,10.0]
[1752324442010,4.09082169,159.6,159.56,10.72]
[1752324442218,0.5,159.59,159.55,10.0]
[1752324442415,0.5,159.59,159.52,10.0]
[1752324442630,26.0,159.56,159.54,10.0]
[1752324442804,26.5,159.56,159.54,10.0]
[1752324443007,26.0,159.56,159.54,10.0]
[1752324443315,26.5,159.56,159.5,10.72]
[1752324443510,26.0,159.54,159.49,41.86990546]
[1752324443706,26.5,159.53,159.49,41.86990546]
[1752324444029,0.5,159.52,159.46,31.31509773]
[1752324444221,145.5,159.52,159.46,31.31509773]
[1752324444419,0.5,159.51,159.46,31.31509773]
[1752324444618,0.5,159.5,159.46,31.31509773]
[1752324444811,145.5,159.52,159.46,32.03509773]
[1752324445016,0.5,159.55,159.47,16.78468397]
[1752324445218,0.5,159.55,159.49,41.86990546]
[1752324446230,26.0,159.54,159.49,41.86990546]
[1752324446420,4.09599173,159.53,159.49,42.58990546]
[1752324446818,4.09599173,159.53,159.48,31.43703959]
[1752324447021,0.5,159.52,159.48,31.43703959]
[1752324447729,30.09599173,159.53,159.46,31.31509773]
[1752324448034,0.5,159.51,159.46,31.31509773]
[1752324448225,0.5,159.51,159.45,10.0]
[1752324448534,0.5,159.51,159.46,31.31509773]
[1752324449038,0.3664,159.53,159.46,31.31509773]
[1752324449738,0.3664,159.53,159.47,31.46179264]
[1752324449909,0.3664,159.53,159.39,18.33698397]
[1752324449910,26.0,159.52,159.45,10.0]
[1752324450113,4.09599173,159.51,159.45,31.37040921]
[1752324450421,4.09599173,159.51,159.45,41.37040921]
[1752324450636,4.09599173,159.51,159.45,31.37040921]
[1752324450830,4.09599173,159.51,159.45,41.37040921]
[1752324451029,4.09599173,159.51,159.45,31.37040921]
[1752324451231,22.84599173,159.51,159.45,41.37040921]
[1752324451534,145.5,159.52,159.45,41.37040921]
[1752324451836,145.5,159.52,159.47,41.46179264]
[1752324452030,145.5,159.52,159.49,31.86990546]
[1752324452234,145.5,159.52,159.5,10.0]